[Event "Titled Tuesday Blitz July 25 Early 2023"]
[White "Ardila, Oscar Humberto"]
[Black "Akylbek2021"]
[WhiteFideId "4404742"]
[WhiteElo "2246"]
[BlackElo "2471"]
[Result "1/2-1/2"]
[Round "2"]
[TimeControl "180+2"]
[Date "2023.07.25"]
[WhiteClock "0:00:09"]
[BlackClock "0:00:04"]
[Board "212"]

1. d4 {[%clk 0:03:00]}  Nf6 {[%clk 0:02:59]} 2. c4 {[%clk 0:02:59]}  g6 {[%clk 0:02:59]} 3. Nc3 {[%clk 0:02:59]}  d5 {[%clk 0:02:59]} 4. cxd5 {[%clk 0:02:58]}  Nxd5 {[%clk 0:03:00]} 5. e4 {[%clk 0:02:58]}  Nxc3 {[%clk 0:03:00]} 6. bxc3 {[%clk 0:02:59]}  Bg7 {[%clk 0:03:00]} 7. Bc4 {[%clk 0:02:59]}  O-O {[%clk 0:03:00]} 8. Ne2 {[%clk 0:02:59]}  c5 {[%clk 0:03:01]} 9. O-O {[%clk 0:02:59]}  Nc6 {[%clk 0:02:59]} 10. Be3 {[%clk 0:02:59]}  Bg4 {[%clk 0:02:59]} 11. f3 {[%clk 0:02:59]}  Na5 {[%clk 0:02:59]} 12. Bd3 {[%clk 0:02:58]}  c4 {[%clk 0:02:58]} 13. Bc2 {[%clk 0:02:58]}  Be6 {[%clk 0:02:52]} 14. Nf4 {[%clk 0:02:51]}  Bd7 {[%clk 0:02:52]} 15. Qd2 {[%clk 0:02:39]}  b5 {[%clk 0:02:51]} 16. Rab1 {[%clk 0:02:37]}  a6 {[%clk 0:02:48]} 17. Nd5 {[%clk 0:02:29]}  e6 {[%clk 0:02:45]} 18. Nf4 {[%clk 0:02:27]}  Qe7 {[%clk 0:02:34]} 19. Rfd1 {[%clk 0:02:24]}  Rfd8 {[%clk 0:02:33]} 20. Qf2 {[%clk 0:02:18]}  Nc6 {[%clk 0:02:21]} 21. d5 {[%clk 0:02:17]}  Ne5 {[%clk 0:02:07]} 22. dxe6 {[%clk 0:02:05]}  Bxe6 {[%clk 0:02:06]} 23. Nd5 {[%clk 0:02:05]}  Bxd5 {[%clk 0:02:04]} 24. exd5 {[%clk 0:02:00]}  Rd7 {[%clk 0:01:42]} 25. a4 {[%clk 0:01:57]}  Rb8 {[%clk 0:01:29]} 26. Bc5 {[%clk 0:01:35]}  Qd8 {[%clk 0:01:05]} 27. d6 {[%clk 0:01:20]}  f5 {[%clk 0:01:02]} 28. Rd5 {[%clk 0:01:05]}  Nf7 {[%clk 0:00:56]} 29. Qd2 {[%clk 0:00:59]}  Qa5 {[%clk 0:00:36]} 30. Bb4 {[%clk 0:00:57]}  Qb6+ {[%clk 0:00:36]} 31. Bc5 {[%clk 0:00:55]}  Qc6 {[%clk 0:00:35]} 32. Kh1 {[%clk 0:00:43]}  Rbd8 {[%clk 0:00:32]} 33. axb5 {[%clk 0:00:42]}  axb5 {[%clk 0:00:32]} 34. Rd1 {[%clk 0:00:42]}  Bf8 {[%clk 0:00:23]} 35. Bb4 {[%clk 0:00:27]}  Bxd6 {[%clk 0:00:23]} 36. Qd4 {[%clk 0:00:18]}  Be5 {[%clk 0:00:12]} 37. Rxd7 {[%clk 0:00:16]}  Bxd4 {[%clk 0:00:12]} 38. Rxd8+ {[%clk 0:00:16]}  Nxd8 {[%clk 0:00:13]} 39. Rxd4 {[%clk 0:00:16]}  Ne6 {[%clk 0:00:13]} 40. Rd6 {[%clk 0:00:15]}  Qe8 {[%clk 0:00:11]} 41. h4 {[%clk 0:00:15]}  Kf7 {[%clk 0:00:11]} 42. g4 {[%clk 0:00:14]}  fxg4 {[%clk 0:00:08]} 43. fxg4 {[%clk 0:00:13]}  Qa8+ {[%clk 0:00:08]} 44. Kg1 {[%clk 0:00:12]}  Qa2 {[%clk 0:00:08]} 45. Be4 {[%clk 0:00:10]}  Qa1+ {[%clk 0:00:08]} 46. Kf2 {[%clk 0:00:09]}  Qb2+ {[%clk 0:00:07]} 47. Ke3 {[%clk 0:00:09]}  Qc1+ {[%clk 0:00:06]} 48. Kf2 {[%clk 0:00:07]}  Qb2+ {[%clk 0:00:07]} 49. Ke3 {[%clk 0:00:07]}  Qh2 {[%clk 0:00:07]} 50. Bd5 {[%clk 0:00:06]}  Qe5+ {[%clk 0:00:05]} 51. Kd2 {[%clk 0:00:06]}  Qf4+ {[%clk 0:00:04]} 52. Kc2 {[%clk 0:00:06]}  Qf2+ {[%clk 0:00:02]} 53. Kb1 {[%clk 0:00:07]}  Qe1+ {[%clk 0:00:02]} 54. Kb2 {[%clk 0:00:07]}  Qd2+ {[%clk 0:00:02]} 55. Kb1 {[%clk 0:00:07]}  Qd1+ {[%clk 0:00:02]} 56. Kb2 {[%clk 0:00:08]}  Qd2+ {[%clk 0:00:03]} 57. Ka1 {[%clk 0:00:08]}  Qc1+ {[%clk 0:00:03]} 58. Ka2 {[%clk 0:00:08]}  Qc2+ {[%clk 0:00:04]} 59. Ka1 {[%clk 0:00:08]}  Qc1+ {[%clk 0:00:04]} 60. Ka2 {[%clk 0:00:09]}  Qc2+ {[%clk 0:00:04]} 61. Ka1 {[%clk 0:00:09]}  Qc1+ {[%clk 0:00:04]} 1/2-1/2


[Site "https://www.chess.com"]

[Event "Titled Tuesday Blitz July 25 Early 2023"]
[White "Yeritsyan, Hayk"]
[Black "Atanasov, Radislav"]
[WhiteFideId "13307320"]
[BlackFideId "2901471"]
[WhiteElo "2471"]
[BlackElo "2244"]
[Result "1/2-1/2"]
[Round "2"]
[TimeControl "180+2"]
[Date "2023.07.25"]
[WhiteClock "0:00:39"]
[BlackClock "0:00:04"]
[Board "213"]

1. Nf3 {[%clk 0:02:53]}  Nf6 {[%clk 0:02:58]} 2. g3 {[%clk 0:02:52]}  g6 {[%clk 0:02:58]} 3. Bg2 {[%clk 0:02:51]}  Bg7 {[%clk 0:02:59]} 4. O-O {[%clk 0:02:46]}  O-O {[%clk 0:02:58]} 5. d3 {[%clk 0:02:38]}  d6 {[%clk 0:02:57]} 6. Nbd2 {[%clk 0:02:39]}  c5 {[%clk 0:02:55]} 7. e4 {[%clk 0:02:39]}  Nc6 {[%clk 0:02:55]} 8. Re1 {[%clk 0:02:40]}  Rb8 {[%clk 0:02:50]} 9. a4 {[%clk 0:02:39]}  a6 {[%clk 0:02:49]} 10. c3 {[%clk 0:02:33]}  e5 {[%clk 0:02:44]} 11. Nc4 {[%clk 0:02:30]}  b5 {[%clk 0:02:41]} 12. axb5 {[%clk 0:02:26]}  axb5 {[%clk 0:02:41]} 13. Ne3 {[%clk 0:02:27]}  h6 {[%clk 0:02:40]} 14. Nd5 {[%clk 0:02:17]}  Be6 {[%clk 0:02:40]} 15. Ra6 {[%clk 0:02:12]}  Bxd5 {[%clk 0:02:19]} 16. exd5 {[%clk 0:02:11]}  Ne7 {[%clk 0:02:19]} 17. c4 {[%clk 0:02:10]}  bxc4 {[%clk 0:02:17]} 18. dxc4 {[%clk 0:02:09]}  Ne8 {[%clk 0:01:55]} 19. Nd2 {[%clk 0:02:06]}  f5 {[%clk 0:01:53]} 20. Qa4 {[%clk 0:02:03]}  e4 {[%clk 0:01:37]} 21. Ra7 {[%clk 0:01:58]}  Nf6 {[%clk 0:01:25]} 22. Nf1 {[%clk 0:01:52]}  Ng4 {[%clk 0:01:23]} 23. Bf4 {[%clk 0:01:40]}  Rxb2 {[%clk 0:01:15]} 24. Ne3 {[%clk 0:01:36]}  Nxf2 {[%clk 0:01:13]} 25. Rd7 {[%clk 0:01:28]}  Qe8 {[%clk 0:01:03]} 26. Qa7 {[%clk 0:01:27]}  Bf6 {[%clk 0:00:29]} 27. Bxd6 {[%clk 0:01:23]}  Rf7 {[%clk 0:00:29]} 28. Bxc5 {[%clk 0:01:16]}  Nd3 {[%clk 0:00:28]} 29. Bxe7 {[%clk 0:01:08]}  Nxe1 {[%clk 0:00:24]} 30. d6 {[%clk 0:01:08]}  Rxg2+ {[%clk 0:00:22]} 31. Nxg2 {[%clk 0:01:06]}  Bd4+ {[%clk 0:00:20]} 32. Qxd4 {[%clk 0:01:05]}  Qxd7 {[%clk 0:00:21]} 33. Qd5 {[%clk 0:01:02]}  Kg7 {[%clk 0:00:18]} 34. Nf4 {[%clk 0:01:02]}  Rxe7 {[%clk 0:00:18]} 35. dxe7 {[%clk 0:01:01]}  Nf3+ {[%clk 0:00:17]} 36. Kf2 {[%clk 0:01:00]}  Qxe7 {[%clk 0:00:17]} 37. c5 {[%clk 0:00:59]}  Ng5 {[%clk 0:00:15]} 38. Qd6 {[%clk 0:00:53]}  e3+ {[%clk 0:00:14]} 39. Ke2 {[%clk 0:00:52]}  Qxd6 {[%clk 0:00:14]} 40. cxd6 {[%clk 0:00:53]}  Kf7 {[%clk 0:00:11]} 41. d7 {[%clk 0:00:53]}  Ke7 {[%clk 0:00:10]} 42. Nxg6+ {[%clk 0:00:53]}  Kxd7 {[%clk 0:00:10]} 43. Kxe3 {[%clk 0:00:54]}  Ke6 {[%clk 0:00:07]} 44. Kf4 {[%clk 0:00:52]}  Kf6 {[%clk 0:00:05]} 45. Nh4 {[%clk 0:00:52]}  Nh3+ {[%clk 0:00:05]} 46. Kf3 {[%clk 0:00:52]}  Ng5+ {[%clk 0:00:05]} 47. Ke3 {[%clk 0:00:53]}  Ne6 {[%clk 0:00:04]} 48. Ng2 {[%clk 0:00:52]}  Kg5 {[%clk 0:00:04]} 49. Kf3 {[%clk 0:00:51]}  Nd4+ {[%clk 0:00:04]} 50. Kf2 {[%clk 0:00:51]}  Ne6 {[%clk 0:00:03]} 51. Ne3 {[%clk 0:00:50]}  f4 {[%clk 0:00:03]} 52. Ng2 {[%clk 0:00:50]}  fxg3+ {[%clk 0:00:03]} 53. Kxg3 {[%clk 0:00:51]}  Nd4 {[%clk 0:00:02]} 54. Nf4 {[%clk 0:00:51]}  Nf5+ {[%clk 0:00:02]} 55. Kf3 {[%clk 0:00:51]}  Nh4+ {[%clk 0:00:02]} 56. Kg3 {[%clk 0:00:51]}  Nf5+ {[%clk 0:00:02]} 57. Kf3 {[%clk 0:00:52]}  Nh4+ {[%clk 0:00:02]} 58. Ke3 {[%clk 0:00:52]}  Nf5+ {[%clk 0:00:03]} 59. Ke4 {[%clk 0:00:52]}  Nh4 {[%clk 0:00:04]} 60. h3 {[%clk 0:00:50]}  Kf6 {[%clk 0:00:03]} 61. Nd5+ {[%clk 0:00:49]}  Kg5 {[%clk 0:00:03]} 62. Ne3 {[%clk 0:00:49]}  Ng6 {[%clk 0:00:03]} 63. Kf3 {[%clk 0:00:48]}  Nf4 {[%clk 0:00:03]} 64. h4+ {[%clk 0:00:48]}  Kxh4 {[%clk 0:00:02]} 65. Kxf4 {[%clk 0:00:48]}  Kh5 {[%clk 0:00:03]} 66. Kf5 {[%clk 0:00:48]}  Kh4 {[%clk 0:00:03]} 67. Kf4 {[%clk 0:00:47]}  Kh3 {[%clk 0:00:03]} 68. Kf3 {[%clk 0:00:45]}  h5 {[%clk 0:00:03]} 69. Nf5 {[%clk 0:00:44]}  Kh2 {[%clk 0:00:03]} 70. Kf2 {[%clk 0:00:45]}  Kh3 {[%clk 0:00:02]} 71. Kf3 {[%clk 0:00:44]}  Kh2 {[%clk 0:00:02]} 72. Nh4 {[%clk 0:00:43]}  Kh3 {[%clk 0:00:02]} 73. Ng6 {[%clk 0:00:42]}  Kh2 {[%clk 0:00:02]} 74. Kf2 {[%clk 0:00:42]}  Kh3 {[%clk 0:00:03]} 75. Kf3 {[%clk 0:00:42]}  Kh2 {[%clk 0:00:03]} 76. Nf4 {[%clk 0:00:42]}  Kh1 {[%clk 0:00:03]} 77. Kf2 {[%clk 0:00:43]}  Kh2 {[%clk 0:00:03]} 78. Kf3 {[%clk 0:00:37]}  Kh1 {[%clk 0:00:03]} 79. Ne2 {[%clk 0:00:38]}  Kh2 {[%clk 0:00:03]} 80. Ng3 {[%clk 0:00:35]}  Kh3 {[%clk 0:00:03]} 81. Ne4 {[%clk 0:00:34]}  Kh4 {[%clk 0:00:03]} 82. Kf4 {[%clk 0:00:34]}  Kh3 {[%clk 0:00:03]} 83. Kf3 {[%clk 0:00:34]}  Kh4 {[%clk 0:00:03]} 84. Nd2 {[%clk 0:00:35]}  Kg5 {[%clk 0:00:03]} 85. Kg3 {[%clk 0:00:34]}  Kf5 {[%clk 0:00:03]} 86. Kh3 {[%clk 0:00:35]}  Kf4 {[%clk 0:00:04]} 87. Nf1 {[%clk 0:00:35]}  Kf3 {[%clk 0:00:04]} 88. Ng3 {[%clk 0:00:36]}  h4 {[%clk 0:00:04]} 89. Nf5 {[%clk 0:00:37]}  Kf4 {[%clk 0:00:04]} 90. Nh6 {[%clk 0:00:37]}  Kg5 {[%clk 0:00:04]} 91. Ng4 {[%clk 0:00:37]}  Kf4 {[%clk 0:00:04]} 92. Nf2 {[%clk 0:00:38]}  Kf3 {[%clk 0:00:04]} 93. Nd3 {[%clk 0:00:37]}  Ke4 {[%clk 0:00:04]} 94. Ne1 {[%clk 0:00:37]}  Ke3 {[%clk 0:00:04]} 95. Kg2 {[%clk 0:00:37]}  Ke2 {[%clk 0:00:05]} 96. Nf3 {[%clk 0:00:38]}  h3+ {[%clk 0:00:05]} 97. Kg3 {[%clk 0:00:38]}  h2 {[%clk 0:00:04]} 98. Nxh2 {[%clk 0:00:39]} 1/2-1/2


[Site "https://www.chess.com"]

[Event "Titled Tuesday Blitz July 25 Early 2023"]
[White "Khouri, Ahmed Abbas"]
[Black "arenal72"]
[WhiteFideId "9301518"]
[WhiteElo "2241"]
[BlackElo "2469"]
[Result "1/2-1/2"]
[Round "2"]
[TimeControl "180+2"]
[Date "2023.07.25"]
[WhiteClock "0:00:15"]
[BlackClock "0:00:26"]
[Board "216"]

1. e4 {[%clk 0:02:59]}  c5 {[%clk 0:02:57]} 2. f4 {[%clk 0:02:59]}  Nc6 {[%clk 0:02:55]} 3. Nf3 {[%clk 0:03:00]}  e6 {[%clk 0:02:54]} 4. Bb5 {[%clk 0:03:00]}  d5 {[%clk 0:02:53]} 5. Nc3 {[%clk 0:02:58]}  g6 {[%clk 0:02:50]} 6. O-O {[%clk 0:02:57]}  Bg7 {[%clk 0:02:48]} 7. d3 {[%clk 0:02:57]}  Ne7 {[%clk 0:02:47]} 8. Bxc6+ {[%clk 0:02:51]}  Nxc6 {[%clk 0:02:44]} 9. e5 {[%clk 0:02:43]}  O-O {[%clk 0:02:40]} 10. Kh1 {[%clk 0:02:42]}  f6 {[%clk 0:02:34]} 11. exf6 {[%clk 0:02:23]}  Qxf6 {[%clk 0:02:29]} 12. Qe2 {[%clk 0:02:16]}  Bd7 {[%clk 0:02:26]} 13. Bd2 {[%clk 0:02:16]}  Rae8 {[%clk 0:02:26]} 14. Rae1 {[%clk 0:02:16]}  Nd4 {[%clk 0:02:23]} 15. Qd1 {[%clk 0:02:09]}  b5 {[%clk 0:02:13]} 16. Ne5 {[%clk 0:02:08]}  Qd8 {[%clk 0:02:06]} 17. Ne2 {[%clk 0:01:53]}  Bxe5 {[%clk 0:01:57]} 18. fxe5 {[%clk 0:01:53]}  Nxe2 {[%clk 0:01:57]} 19. Qxe2 {[%clk 0:01:53]}  d4 {[%clk 0:01:57]} 20. b4 {[%clk 0:01:36]}  Bc6 {[%clk 0:01:51]} 21. bxc5 {[%clk 0:01:29]}  Qd5 {[%clk 0:01:50]} 22. Bh6 {[%clk 0:01:23]}  Rf5 {[%clk 0:01:48]} 23. Rxf5 {[%clk 0:01:14]}  exf5 {[%clk 0:01:49]} 24. e6 {[%clk 0:01:14]}  Qxc5 {[%clk 0:01:42]} 25. e7 {[%clk 0:01:12]}  Qd5 {[%clk 0:01:37]} 26. Qe6+ {[%clk 0:01:09]}  Qxe6 {[%clk 0:01:36]} 27. Rxe6 {[%clk 0:01:10]}  Bd5 {[%clk 0:01:36]} 28. Rf6 {[%clk 0:01:01]}  Bf7 {[%clk 0:01:34]} 29. Bf8 {[%clk 0:01:01]}  Bxa2 {[%clk 0:01:29]} 30. Rd6 {[%clk 0:00:58]}  Kf7 {[%clk 0:01:26]} 31. Ra6 {[%clk 0:00:56]}  Bd5 {[%clk 0:01:24]} 32. Rxa7 {[%clk 0:00:55]}  Ra8 {[%clk 0:01:21]} 33. Rxa8 {[%clk 0:00:50]}  Bxa8 {[%clk 0:01:22]} 34. Kg1 {[%clk 0:00:50]}  Bd5 {[%clk 0:01:16]} 35. Bg7 {[%clk 0:00:42]}  Kxe7 {[%clk 0:01:13]} 36. Bxd4 {[%clk 0:00:42]}  Kd6 {[%clk 0:01:10]} 37. Kf2 {[%clk 0:00:42]}  b4 {[%clk 0:01:06]} 38. g3 {[%clk 0:00:41]}  Kc6 {[%clk 0:01:02]} 39. Ke3 {[%clk 0:00:40]}  Kb5 {[%clk 0:00:58]} 40. Kf4 {[%clk 0:00:40]}  Ba2 {[%clk 0:00:49]} 41. Kg5 {[%clk 0:00:29]}  Bb1 {[%clk 0:00:47]} 42. Kh6 {[%clk 0:00:29]}  Bxc2 {[%clk 0:00:46]} 43. Kxh7 {[%clk 0:00:30]}  Bxd3 {[%clk 0:00:47]} 44. Kxg6 {[%clk 0:00:29]}  f4+ {[%clk 0:00:47]} 45. Kg5 {[%clk 0:00:28]}  f3 {[%clk 0:00:47]} 46. Kf4 {[%clk 0:00:28]}  Be2 {[%clk 0:00:45]} 47. Ke3 {[%clk 0:00:23]}  Kc4 {[%clk 0:00:39]} 48. h4 {[%clk 0:00:23]}  Bd1 {[%clk 0:00:23]} 49. Ba1 {[%clk 0:00:14]}  Kb3 {[%clk 0:00:22]} 50. h5 {[%clk 0:00:14]}  f2 {[%clk 0:00:22]} 51. Kxf2 {[%clk 0:00:14]}  Bxh5 {[%clk 0:00:23]} 52. Ke3 {[%clk 0:00:15]}  Ka2 {[%clk 0:00:23]} 53. Be5 {[%clk 0:00:15]}  b3 {[%clk 0:00:24]} 54. Kf4 {[%clk 0:00:15]}  b2 {[%clk 0:00:25]} 55. Bxb2 {[%clk 0:00:14]}  Kxb2 {[%clk 0:00:26]} 56. g4 {[%clk 0:00:15]}  Bxg4 {[%clk 0:00:26]} 1/2-1/2


[Site "https://www.chess.com"]

[Event "Titled Tuesday Blitz July 25 Early 2023"]
[White "Kopczynski, Michal"]
[Black "Sariego Figueredo, Wilfredo"]
[WhiteFideId "1124200"]
[BlackFideId "3500080"]
[WhiteElo "2465"]
[BlackElo "2208"]
[Result "1-0"]
[Round "2"]
[TimeControl "180+2"]
[Date "2023.07.25"]
[WhiteClock "0:00:09"]
[BlackClock "0:00:01"]
[Board "220"]

1. e4 {[%clk 0:03:00]}  c5 {[%clk 0:03:00]} 2. d4 {[%clk 0:03:01]}  cxd4 {[%clk 0:03:00]} 3. c3 {[%clk 0:03:01]}  Nf6 {[%clk 0:03:01]} 4. Bd3 {[%clk 0:03:00]}  dxc3 {[%clk 0:02:56]} 5. Nxc3 {[%clk 0:03:01]}  e5 {[%clk 0:02:55]} 6. f4 {[%clk 0:03:01]}  Nc6 {[%clk 0:02:48]} 7. Nf3 {[%clk 0:03:01]}  d6 {[%clk 0:02:46]} 8. O-O {[%clk 0:03:00]}  Be7 {[%clk 0:02:46]} 9. Kh1 {[%clk 0:03:01]}  O-O {[%clk 0:02:45]} 10. Qe1 {[%clk 0:03:01]}  Nb4 {[%clk 0:02:43]} 11. Bb1 {[%clk 0:03:01]}  Nc6 {[%clk 0:02:42]} 12. f5 {[%clk 0:02:59]}  Re8 {[%clk 0:02:35]} 13. Be3 {[%clk 0:02:56]}  d5 {[%clk 0:02:32]} 14. exd5 {[%clk 0:02:56]}  Nxd5 {[%clk 0:02:33]} 15. Nxd5 {[%clk 0:02:52]}  Qxd5 {[%clk 0:02:34]} 16. a3 {[%clk 0:02:49]}  Qb5 {[%clk 0:02:29]} 17. Be4 {[%clk 0:02:40]}  Bf6 {[%clk 0:02:22]} 18. b4 {[%clk 0:02:35]}  b6 {[%clk 0:02:09]} 19. a4 {[%clk 0:02:29]}  Qc4 {[%clk 0:02:04]} 20. Bg5 {[%clk 0:02:21]}  Bb7 {[%clk 0:02:01]} 21. Rc1 {[%clk 0:02:15]}  Qxb4 {[%clk 0:01:44]} 22. Qxb4 {[%clk 0:02:13]}  Nxb4 {[%clk 0:01:45]} 23. Bxb7 {[%clk 0:02:11]}  Rab8 {[%clk 0:01:44]} 24. Bxf6 {[%clk 0:02:08]}  gxf6 {[%clk 0:01:43]} 25. Rc7 {[%clk 0:02:07]}  e4 {[%clk 0:01:38]} 26. Nd4 {[%clk 0:02:01]}  e3 {[%clk 0:01:37]} 27. Bf3 {[%clk 0:01:59]}  Nd3 {[%clk 0:01:33]} 28. Nc6 {[%clk 0:01:52]}  Ra8 {[%clk 0:01:23]} 29. Re7 {[%clk 0:01:39]}  Rac8 {[%clk 0:01:19]} 30. Kg1 {[%clk 0:01:26]}  Kf8 {[%clk 0:01:11]} 31. Rxe8+ {[%clk 0:01:25]}  Rxe8 {[%clk 0:01:12]} 32. Nd4 {[%clk 0:01:20]}  a6 {[%clk 0:00:58]} 33. Rd1 {[%clk 0:01:16]}  Nb2 {[%clk 0:00:58]} 34. Re1 {[%clk 0:01:14]}  Re5 {[%clk 0:00:56]} 35. Nc2 {[%clk 0:01:10]}  Nxa4 {[%clk 0:00:49]} 36. Nxe3 {[%clk 0:01:07]}  Nc5 {[%clk 0:00:41]} 37. Nc2 {[%clk 0:00:38]}  Rxf5 {[%clk 0:00:38]} 38. Nd4 {[%clk 0:00:36]}  Rf4 {[%clk 0:00:34]} 39. Nc6 {[%clk 0:00:33]}  a5 {[%clk 0:00:31]} 40. Rb1 {[%clk 0:00:33]}  Na4 {[%clk 0:00:23]} 41. Nb8 {[%clk 0:00:29]}  Rf5 {[%clk 0:00:17]} 42. Nd7+ {[%clk 0:00:29]}  Kg7 {[%clk 0:00:18]} 43. Nxb6 {[%clk 0:00:28]}  Nc3 {[%clk 0:00:18]} 44. Ra1 {[%clk 0:00:26]}  Rb5 {[%clk 0:00:16]} 45. Nc4 {[%clk 0:00:26]}  a4 {[%clk 0:00:16]} 46. Kf2 {[%clk 0:00:25]}  Rb4 {[%clk 0:00:16]} 47. Ne3 {[%clk 0:00:22]}  Rb2+ {[%clk 0:00:15]} 48. Kg3 {[%clk 0:00:22]}  Na2 {[%clk 0:00:15]} 49. Nf5+ {[%clk 0:00:21]}  Kg8 {[%clk 0:00:15]} 50. Nd4 {[%clk 0:00:21]}  Nc3 {[%clk 0:00:11]} 51. Kf4 {[%clk 0:00:19]}  Rb4 {[%clk 0:00:11]} 52. Ke3 {[%clk 0:00:19]}  f5 {[%clk 0:00:08]} 53. Kd3 {[%clk 0:00:19]}  Ne4 {[%clk 0:00:04]} 54. Nxf5 {[%clk 0:00:18]}  Nf2+ {[%clk 0:00:03]} 55. Kc3 {[%clk 0:00:18]}  Rb3+ {[%clk 0:00:03]} 56. Kc4 {[%clk 0:00:19]}  Nd3 {[%clk 0:00:02]} 57. Rd1 {[%clk 0:00:15]}  Nb2+ {[%clk 0:00:02]} 58. Kc5 {[%clk 0:00:12]}  Nxd1 {[%clk 0:00:03]} 59. Bxd1 {[%clk 0:00:13]}  Rc3+ {[%clk 0:00:03]} 60. Kb4 {[%clk 0:00:11]}  Rc1 {[%clk 0:00:04]} 61. Bxa4 {[%clk 0:00:11]}  Rg1 {[%clk 0:00:03]} 62. Bc6 {[%clk 0:00:11]}  Rh1 {[%clk 0:00:03]} 63. h3 {[%clk 0:00:11]}  Rb1+ {[%clk 0:00:04]} 64. Kc5 {[%clk 0:00:10]}  Rb2 {[%clk 0:00:04]} 65. Kd6 {[%clk 0:00:10]}  h5 {[%clk 0:00:04]} 66. Bd5 {[%clk 0:00:10]}  Rd2 {[%clk 0:00:04]} 67. Ke5 {[%clk 0:00:08]}  Re2+ {[%clk 0:00:04]} 68. Kf6 {[%clk 0:00:09]}  Rf2 {[%clk 0:00:02]} 69. Bxf7+ {[%clk 0:00:08]}  Kh7 {[%clk 0:00:01]} 70. Bd5 {[%clk 0:00:09]} 1-0


[Site "https://www.chess.com"]

[Event "Titled Tuesday Blitz July 25 Early 2023"]
[White "Kiseleva, Arina"]
[Black "Molenda, Marcin"]
[WhiteFideId "4164989"]
[BlackFideId "1173065"]
[WhiteElo "2202"]
[BlackElo "2465"]
[Result "1-0"]
[Round "2"]
[TimeControl "180+2"]
[Date "2023.07.25"]
[WhiteClock "0:00:05"]
[BlackClock "0:00:01"]
[Board "221"]

1. d4 {[%clk 0:03:00]}  Nf6 {[%clk 0:02:59]} 2. Nf3 {[%clk 0:03:00]}  g6 {[%clk 0:02:59]} 3. Nbd2 {[%clk 0:02:59]}  d5 {[%clk 0:02:58]} 4. b3 {[%clk 0:02:59]}  Bg7 {[%clk 0:02:56]} 5. Bb2 {[%clk 0:02:58]}  O-O {[%clk 0:02:56]} 6. e3 {[%clk 0:02:57]}  a5 {[%clk 0:02:56]} 7. a4 {[%clk 0:02:53]}  Nc6 {[%clk 0:02:49]} 8. Be2 {[%clk 0:02:50]}  Bf5 {[%clk 0:02:50]} 9. O-O {[%clk 0:02:45]}  Nb4 {[%clk 0:02:50]} 10. Rc1 {[%clk 0:02:40]}  Ne4 {[%clk 0:02:26]} 11. Nxe4 {[%clk 0:02:37]}  Bxe4 {[%clk 0:02:25]} 12. c3 {[%clk 0:02:16]}  Nc6 {[%clk 0:02:17]} 13. c4 {[%clk 0:02:14]}  Nb4 {[%clk 0:02:14]} 14. cxd5 {[%clk 0:02:11]}  Bxd5 {[%clk 0:02:12]} 15. Bc4 {[%clk 0:02:07]}  c6 {[%clk 0:02:05]} 16. Qe2 {[%clk 0:02:04]}  Qd7 {[%clk 0:02:01]} 17. e4 {[%clk 0:01:57]}  Bxc4 {[%clk 0:02:00]} 18. bxc4 {[%clk 0:01:52]}  Rfd8 {[%clk 0:01:45]} 19. Rfd1 {[%clk 0:01:50]}  Rac8 {[%clk 0:01:42]} 20. h3 {[%clk 0:01:31]}  e6 {[%clk 0:01:33]} 21. e5 {[%clk 0:01:16]}  c5 {[%clk 0:01:18]} 22. dxc5 {[%clk 0:01:02]}  Qc6 {[%clk 0:00:50]} 23. Ng5 {[%clk 0:00:54]}  Qxc5 {[%clk 0:00:47]} 24. Ne4 {[%clk 0:00:35]}  Rxd1+ {[%clk 0:00:37]} 25. Qxd1 {[%clk 0:00:35]}  Qc6 {[%clk 0:00:33]} 26. Nf6+ {[%clk 0:00:35]}  Kh8 {[%clk 0:00:20]} 27. Qd2 {[%clk 0:00:33]}  Qxa4 {[%clk 0:00:19]} 28. Rd1 {[%clk 0:00:30]}  Nc6 {[%clk 0:00:15]} 29. Qd7 {[%clk 0:00:26]}  Rf8 {[%clk 0:00:14]} 30. Rf1 {[%clk 0:00:12]}  Qxc4 {[%clk 0:00:14]} 31. Qxb7 {[%clk 0:00:11]}  Nb4 {[%clk 0:00:10]} 32. Nd7 {[%clk 0:00:07]}  Qc8 {[%clk 0:00:03]} 33. Qb5 {[%clk 0:00:06]}  Rd8 {[%clk 0:00:03]} 34. Nf6 {[%clk 0:00:06]}  Qa6 {[%clk 0:00:02]} 35. Qa4 {[%clk 0:00:05]}  Nd5 {[%clk 0:00:01]} 36. Ne8 {[%clk 0:00:05]} 1-0


[Site "https://www.chess.com"]

[Event "Titled Tuesday Blitz July 25 Early 2023"]
[White "Francisco_Ferrari"]
[Black "Ljukin, Sergei"]
[BlackFideId "14102200"]
[WhiteElo "2178"]
[BlackElo "2456"]
[Result "0-1"]
[Round "2"]
[TimeControl "180+2"]
[Date "2023.07.25"]
[WhiteClock "0:00:02"]
[BlackClock "0:00:37"]
[Board "225"]

1. e4 {[%clk 0:03:00]}  e6 {[%clk 0:02:48]} 2. d3 {[%clk 0:02:56]}  d5 {[%clk 0:02:49]} 3. Qe2 {[%clk 0:02:55]}  Be7 {[%clk 0:02:48]} 4. Nf3 {[%clk 0:02:55]}  Nf6 {[%clk 0:02:47]} 5. g3 {[%clk 0:02:55]}  O-O {[%clk 0:02:47]} 6. Bg2 {[%clk 0:02:56]}  c5 {[%clk 0:02:48]} 7. O-O {[%clk 0:02:53]}  Nc6 {[%clk 0:02:48]} 8. Nbd2 {[%clk 0:02:48]}  b5 {[%clk 0:02:48]} 9. Re1 {[%clk 0:02:43]}  Qb6 {[%clk 0:02:46]} 10. h4 {[%clk 0:02:31]}  Bb7 {[%clk 0:02:27]} 11. e5 {[%clk 0:02:27]}  Nd7 {[%clk 0:02:26]} 12. Nf1 {[%clk 0:02:27]}  c4 {[%clk 0:02:25]} 13. N1h2 {[%clk 0:02:17]}  cxd3 {[%clk 0:02:23]} 14. Qxd3 {[%clk 0:02:15]}  b4 {[%clk 0:02:06]} 15. Ng4 {[%clk 0:02:00]}  Ba6 {[%clk 0:01:57]} 16. Qd2 {[%clk 0:01:41]}  Rac8 {[%clk 0:01:56]} 17. h5 {[%clk 0:01:33]}  Qc7 {[%clk 0:01:27]} 18. Qf4 {[%clk 0:00:43]}  Nd8 {[%clk 0:01:10]} 19. Be3 {[%clk 0:00:20]}  Qxc2 {[%clk 0:01:06]} 20. Rac1 {[%clk 0:00:12]}  Qf5 {[%clk 0:00:48]} 21. Qd4 {[%clk 0:00:04]}  Bc5 {[%clk 0:00:38]} 22. Rxc5 {[%clk 0:00:02]}  Nxc5 {[%clk 0:00:37]} 0-1


[Site "https://www.chess.com"]

[Event "Titled Tuesday Blitz July 25 Early 2023"]
[White "Novikova, Margarita"]
[Black "Pasti, Aron"]
[WhiteFideId "14109689"]
[BlackFideId "785857"]
[WhiteElo "2176"]
[BlackElo "2455"]
[Result "0-1"]
[Round "2"]
[TimeControl "180+2"]
[Date "2023.07.25"]
[WhiteClock "0:01:12"]
[BlackClock "0:01:18"]
[Board "226"]

1. e4 {[%clk 0:02:57]}  e5 {[%clk 0:03:00]} 2. Nf3 {[%clk 0:02:55]}  Nc6 {[%clk 0:03:00]} 3. Bc4 {[%clk 0:02:55]}  Bc5 {[%clk 0:03:00]} 4. c3 {[%clk 0:02:55]}  Nf6 {[%clk 0:03:00]} 5. d4 {[%clk 0:02:56]}  exd4 {[%clk 0:03:01]} 6. cxd4 {[%clk 0:02:56]}  Bb4+ {[%clk 0:03:01]} 7. Bd2 {[%clk 0:02:57]}  d5 {[%clk 0:02:52]} 8. Bxb4 {[%clk 0:02:49]}  dxc4 {[%clk 0:02:44]} 9. Ba3 {[%clk 0:02:00]}  Bg4 {[%clk 0:02:40]} 10. d5 {[%clk 0:01:55]}  Ne5 {[%clk 0:02:39]} 11. Nbd2 {[%clk 0:01:55]}  Nd3+ {[%clk 0:02:39]} 12. Ke2 {[%clk 0:01:55]}  Qd7 {[%clk 0:02:10]} 13. Nxc4 {[%clk 0:01:53]}  Nf4+ {[%clk 0:02:10]} 14. Kf1 {[%clk 0:01:50]}  O-O-O {[%clk 0:01:52]} 15. Qd4 {[%clk 0:01:34]}  Bxf3 {[%clk 0:01:24]} 16. Ne5 {[%clk 0:01:18]}  Qb5+ {[%clk 0:01:18]} 17. Kg1 {[%clk 0:01:12]}  Ne2+ {[%clk 0:01:18]} 0-1


[Site "https://www.chess.com"]